[Event "Live Chess"]
[Site "Chess.com"]
[Date "2023.05.20"]
[Round "-"]
[White "tpm07"]
[Black "LiamClery2020"]
[Result "0-1"]
[WhiteElo "1956"]
[BlackElo "2098"]
[TimeControl "300"]
[EndTime "11:26:09 PDT"]
[Termination "LiamClery2020 won by resignation"]

1. e4 {[%clk 0:04:57]} 1... Nf6 {[%clk 0:04:58.9]} 2. Nc3 {[%clk 0:04:53.6]}
2... e5 {[%clk 0:04:58.1]} 3. Bc4 {[%clk 0:04:46.3]} 3... Nc6 {[%clk 0:04:57.1]}
4. d3 {[%clk 0:04:42.9]} 4... Bb4 {[%clk 0:04:47.7]} 5. f4 {[%clk 0:04:40.5]}
5... Bxc3+ {[%clk 0:04:45.2]} 6. bxc3 {[%clk 0:04:38.8]} 6... d5 {[%clk
0:04:45.1]} 7. exd5 {[%clk 0:04:35.2]} 7... Nxd5 {[%clk 0:04:43.1]} 8. fxe5
{[%clk 0:04:31.9]} 8... Nxe5 {[%clk 0:04:39.7]} 9. Qh5 {[%clk 0:04:30.2]} 9...
Nxc4 {[%clk 0:04:36.9]} 10. dxc4 {[%clk 0:04:25.7]} 10... Qe7+ {[%clk
0:04:26.1]} 11. Kf1 {[%clk 0:04:19]} 11... Nf6 {[%clk 0:04:15]} 12. Qg5 {[%clk
0:04:12.7]} 12... Be6 {[%clk 0:04:10.6]} 13. Nf3 {[%clk 0:04:03.9]} 13... Bxc4+
{[%clk 0:04:09.3]} 14. Kg1 {[%clk 0:04:03]} 14... O-O-O {[%clk 0:04:06.7]} 15.
Be3 {[%clk 0:04:01.2]} 15... h6 {[%clk 0:03:59.9]} 16. Qg3 {[%clk 0:03:55.6]}
16... Qxe3+ {[%clk 0:03:58.2]} 0-1

[Event "Live Chess"]
[Site "Chess.com"]
[Date "2023.05.20"]
[Round "-"]
[White "GMHarry-youtube"]
[Black "Delacorta"]
[Result "1-0"]
[WhiteElo "2104"]
[BlackElo "1422"]
[TimeControl "300"]
[EndTime "11:26:17 PDT"]
[Termination "GMHarry-youtube won on time"]

1. e4 {[%clk 0:04:58.8]} 1... e6 {[%clk 0:04:58.9]} 2. d4 {[%clk 0:04:57.5]}
2... d5 {[%clk 0:04:58]} 3. e5 {[%clk 0:04:57]} 3... c5 {[%clk 0:04:56.6]} 4. c3
{[%clk 0:04:56.9]} 4... Nc6 {[%clk 0:04:55.3]} 5. Nf3 {[%clk 0:04:55.8]} 5...
Qb6 {[%clk 0:04:52.9]} 6. Bd3 {[%clk 0:04:54.3]} 6... c4 {[%clk 0:04:51.6]} 7.
Bc2 {[%clk 0:04:53.4]} 7... Nh6 {[%clk 0:04:43.2]} 8. Bxh6 {[%clk 0:04:49.6]}
8... gxh6 {[%clk 0:04:42]} 9. Nh4 {[%clk 0:04:48.3]} 9... Bd7 {[%clk 0:04:30.3]}
10. Qc1 {[%clk 0:04:44.3]} 10... O-O-O {[%clk 0:04:28.8]} 11. b4 {[%clk
0:04:41.2]} 11... Nxb4 {[%clk 0:04:23.5]} 12. cxb4 {[%clk 0:04:38.1]} 12...
Bxb4+ {[%clk 0:04:19.4]} 13. Nd2 {[%clk 0:04:33.5]} 13... Qa5 {[%clk 0:04:09.7]}
14. a3 {[%clk 0:04:04.5]} 14... Bc3 {[%clk 0:03:51.7]} 15. Rb1 {[%clk
0:04:02.4]} 15... Bxd4 {[%clk 0:03:43.1]} 16. O-O {[%clk 0:03:32.2]} 16... Bxe5
{[%clk 0:03:35.7]} 17. Ndf3 {[%clk 0:03:21.4]} 17... Bf6 {[%clk 0:03:34]} 18.
Qxh6 {[%clk 0:03:19.5]} 18... Bxh4 {[%clk 0:03:30.5]} 19. Nxh4 {[%clk
0:03:19.4]} 19... d4 {[%clk 0:02:55.5]} 20. Be4 {[%clk 0:03:02.6]} 20... b6
{[%clk 0:02:41.6]} 21. Qf4 {[%clk 0:02:52.9]} 21... f5 {[%clk 0:02:17.5]} 22.
Bf3 {[%clk 0:02:49.6]} 22... e5 {[%clk 0:02:13.7]} 23. Qh6 {[%clk 0:02:41.9]}
23... e4 {[%clk 0:02:03.9]} 24. Bh5 {[%clk 0:02:22.7]} 24... f4 {[%clk
0:01:41.3]} 25. Rfc1 {[%clk 0:01:59.5]} 25... c3 {[%clk 0:01:28.6]} 26. Qxf4
{[%clk 0:01:57.8]} 26... Qxh5 {[%clk 0:01:14.9]} 27. Qxe4 {[%clk 0:01:40.5]}
27... Kb8 {[%clk 0:00:37.4]} 28. Qxd4 {[%clk 0:01:34.3]} 28... Bf5 {[%clk
0:00:29.9]} 29. Qe5+ {[%clk 0:01:30.6]} 29... Ka8 {[%clk 0:00:27]} 30. Qxf5
{[%clk 0:01:20.5]} 30... Qxf5 {[%clk 0:00:23.2]} 31. Nxf5 {[%clk 0:01:20.4]}
31... Rd3 {[%clk 0:00:15.8]} 32. Rb3 {[%clk 0:01:18.5]} 32... Rhd8 {[%clk
0:00:13.6]} 33. Ne3 {[%clk 0:01:15.6]} 33... Rc8 {[%clk 0:00:03.6]} 34. Kf1
{[%clk 0:01:13.4]} 1-0

[Event "Live Chess"]
[Site "Chess.com"]
[Date "2023.05.20"]
[Round "-"]
[White "mattihelenius2"]
[Black "SavagePawn7"]
[Result "1-0"]
[WhiteElo "491"]
[BlackElo "749"]
[TimeControl "300"]
[EndTime "11:26:17 PDT"]
[Termination "mattihelenius2 won by resignation"]

1. d4 {[%clk 0:04:57]} 1... e5 {[%clk 0:04:57.9]} 2. e4 {[%clk 0:04:51.2]} 2...
exd4 {[%clk 0:04:56.3]} 3. Qxd4 {[%clk 0:04:49.9]} 3... Nc6 {[%clk 0:04:52]} 4.
Qd1 {[%clk 0:04:46.7]} 4... Qf6 {[%clk 0:04:45.3]} 5. Qf3 {[%clk 0:04:41]} 5...
Qxf3 {[%clk 0:04:30.1]} 6. Nxf3 {[%clk 0:04:40.9]} 6... Nb4 {[%clk 0:04:25.1]}
7. Bd3 {[%clk 0:04:33.8]} 7... d5 {[%clk 0:04:18.9]} 8. a3 {[%clk 0:04:31.7]}
8... dxe4 {[%clk 0:04:14.4]} 9. Bxe4 {[%clk 0:04:28.5]} 9... Be6 {[%clk
0:04:02.6]} 10. axb4 {[%clk 0:04:23.4]} 10... O-O-O {[%clk 0:03:57.8]} 11. Rxa7
{[%clk 0:04:21.8]} 11... Bxb4+ {[%clk 0:03:49.5]} 12. c3 {[%clk 0:04:20.1]}
12... Bc5 {[%clk 0:03:46.5]} 13. Bxb7+ {[%clk 0:04:18.6]} 13... Kd7 {[%clk
0:03:43.4]} 14. Ne5+ {[%clk 0:04:17]} 14... Ke7 {[%clk 0:03:41.7]} 15. Nc6+
{[%clk 0:04:13.3]} 1-0

[Event "Live Chess"]
[Site "Chess.com"]
[Date "2023.05.20"]
[Round "-"]
[White "Lewstar1"]
[Black "WelshTiger"]
[Result "0-1"]
[WhiteElo "450"]
[BlackElo "2431"]
[TimeControl "300"]
[EndTime "11:26:22 PDT"]
[Termination "WelshTiger won by checkmate"]

1. e4 {[%clk 0:04:50.9]} 1... c5 {[%clk 0:04:59]} 2. c3 {[%clk 0:04:47.3]} 2...
Nf6 {[%clk 0:04:54.2]} 3. d4 {[%clk 0:04:46.5]} 3... Nxe4 {[%clk 0:04:48.9]} 4.
dxc5 {[%clk 0:04:44.4]} 4... Nxc5 {[%clk 0:04:47.6]} 5. Qh5 {[%clk 0:04:35.1]}
5... d5 {[%clk 0:04:42]} 6. c4 {[%clk 0:04:31.5]} 6... e6 {[%clk 0:04:28]} 7.
cxd5 {[%clk 0:04:28.3]} 7... Qxd5 {[%clk 0:04:27.2]} 8. Qxd5 {[%clk 0:04:25]}
8... exd5 {[%clk 0:04:27.1]} 9. Be2 {[%clk 0:04:23.1]} 9... Nc6 {[%clk
0:04:25.8]} 10. Nf3 {[%clk 0:04:22.5]} 10... Be6 {[%clk 0:04:16.1]} 11. O-O
{[%clk 0:04:22.4]} 11... Be7 {[%clk 0:04:14.6]} 12. Be3 {[%clk 0:04:18.3]} 12...
Rd8 {[%clk 0:04:11.2]} 13. b4 {[%clk 0:04:16.6]} 13... Nxb4 {[%clk 0:04:07.4]}
14. a3 {[%clk 0:04:13.9]} 14... Nc2 {[%clk 0:04:06.5]} 15. Ra2 {[%clk 0:04:08]}
15... Nxe3 {[%clk 0:04:05.6]} 16. fxe3 {[%clk 0:04:06.2]} 16... d4 {[%clk
0:04:01.9]} 17. exd4 {[%clk 0:04:04.6]} 17... Bxa2 {[%clk 0:04:00.3]} 18. dxc5
{[%clk 0:04:00]} 18... Bxc5+ {[%clk 0:03:56.2]} 19. Kh1 {[%clk 0:03:57.9]} 19...
O-O {[%clk 0:03:51.2]} 20. Nc3 {[%clk 0:03:44.5]} 20... Be6 {[%clk 0:03:49.7]}
21. Ne4 {[%clk 0:03:40.3]} 21... Bxa3 {[%clk 0:03:46.3]} 22. Rb1 {[%clk
0:03:31.5]} 22... Bd5 {[%clk 0:03:41.9]} 23. Nc3 {[%clk 0:02:57.1]} 23... Bc6
{[%clk 0:03:35]} 24. Ne5 {[%clk 0:02:51.8]} 24... Rfe8 {[%clk 0:03:31.1]} 25.
Nxc6 {[%clk 0:02:46.2]} 25... bxc6 {[%clk 0:03:31]} 26. Rb3 {[%clk 0:02:34.1]}
26... Bc5 {[%clk 0:03:25.7]} 27. Rb7 {[%clk 0:02:30.6]} 27... Re3 {[%clk
0:03:20]} 28. Rc7 {[%clk 0:02:07.2]} 28... Rxc3 {[%clk 0:03:16.9]} 29. Rxc6
{[%clk 0:02:06.5]} 29... Rc1+ {[%clk 0:03:16.2]} 30. Bf1 {[%clk 0:02:03.2]}
30... Rxf1# {[%clk 0:03:13.8]} 0-1

[Event "Live Chess"]
[Site "Chess.com"]
[Date "2023.05.20"]
[Round "-"]
[White "TobyQuaite"]
[Black "AyannaTang"]
[Result "1-0"]
[WhiteElo "1694"]
[BlackElo "176"]
[TimeControl "300"]
[EndTime "11:26:22 PDT"]
[Termination "TobyQuaite won by checkmate"]

1. e4 {[%clk 0:04:57.1]} 1... e5 {[%clk 0:04:56.6]} 2. Nf3 {[%clk 0:04:56.2]}
2... Nf6 {[%clk 0:04:53.1]} 3. Nxe5 {[%clk 0:04:54.2]} 3... Nxe4 {[%clk
0:04:51]} 4. Qe2 {[%clk 0:04:52.5]} 4... d6 {[%clk 0:04:48.5]} 5. Nf3 {[%clk
0:04:45.9]} 5... f5 {[%clk 0:04:37.9]} 6. d3 {[%clk 0:04:44.5]} 6... d5 {[%clk
0:04:29.3]} 7. dxe4 {[%clk 0:04:43.6]} 7... fxe4 {[%clk 0:04:28.1]} 8. Nc3
{[%clk 0:04:40.5]} 8... d4 {[%clk 0:04:26]} 9. Qxe4+ {[%clk 0:04:35]} 9... Be7
{[%clk 0:04:23.3]} 10. Nxd4 {[%clk 0:04:33.3]} 10... O-O {[%clk 0:04:20.3]} 11.
Bc4+ {[%clk 0:04:30.3]} 11... Kh8 {[%clk 0:04:17.8]} 12. Bf1 {[%clk 0:04:29.5]}
12... Bb4 {[%clk 0:04:08.1]} 13. Bc4 {[%clk 0:04:26.3]} 13... Bxc3+ {[%clk
0:03:47.6]} 14. bxc3 {[%clk 0:04:25.2]} 14... Bf5 {[%clk 0:03:43.1]} 15. Nxf5
{[%clk 0:04:23.1]} 15... Nc6 {[%clk 0:03:37.1]} 16. O-O {[%clk 0:04:20.4]} 16...
Qd7 {[%clk 0:02:56]} 17. Be6 {[%clk 0:04:05.1]} 17... Rfd8 {[%clk 0:02:50.8]}
18. Bxd7 {[%clk 0:04:02.6]} 18... Rxd7 {[%clk 0:02:49.8]} 19. Re1 {[%clk
0:03:59.4]} 19... Rdd8 {[%clk 0:02:36.3]} 20. Qg4 {[%clk 0:03:54.2]} 20... Re8
{[%clk 0:02:32.4]} 21. Qxg7# {[%clk 0:03:52.1]} 1-0

[Event "Live Chess"]
[Site "Chess.com"]
[Date "2023.05.20"]
[Round "-"]
[White "Jeffaroow"]
[Black "PantherCal"]
[Result "0-1"]
[WhiteElo "460"]
[BlackElo "1835"]
[TimeControl "300"]
[EndTime "11:26:23 PDT"]
[Termination "PantherCal won by resignation"]

1. e4 {[%clk 0:04:59.2]} 1... d5 {[%clk 0:04:58.4]} 2. Nf3 {[%clk 0:04:57.5]}
2... dxe4 {[%clk 0:04:57.2]} 3. Ng5 {[%clk 0:04:56.2]} 3... Nf6 {[%clk
0:04:55.3]} 4. d3 {[%clk 0:04:55]} 4... exd3 {[%clk 0:04:53.3]} 5. Bxd3 {[%clk
0:04:54.4]} 5... Nc6 {[%clk 0:04:52.4]} 6. Bc4 {[%clk 0:04:46]} 6... e6 {[%clk
0:04:51.1]} 7. Qxd8+ {[%clk 0:04:39.8]} 7... Nxd8 {[%clk 0:04:51]} 8. Nc3 {[%clk
0:04:37.2]} 8... Be7 {[%clk 0:04:49.4]} 9. Nb5 {[%clk 0:04:33.8]} 9... Bd6
{[%clk 0:04:41.7]} 10. Nxd6+ {[%clk 0:04:31.7]} 10... cxd6 {[%clk 0:04:41.6]}
11. O-O {[%clk 0:04:29.2]} 11... O-O {[%clk 0:04:40.7]} 12. Be3 {[%clk 0:04:23]}
12... d5 {[%clk 0:04:39]} 13. Bb3 {[%clk 0:04:18.4]} 13... Nc6 {[%clk 0:04:36]}
14. Bc5 {[%clk 0:04:08.8]} 14... Re8 {[%clk 0:04:33.2]} 15. Rae1 {[%clk
0:03:54.9]} 15... Bd7 {[%clk 0:04:30.8]} 16. c4 {[%clk 0:03:43.2]} 16... dxc4
{[%clk 0:04:15.4]} 17. Bxc4 {[%clk 0:03:42]} 17... a6 {[%clk 0:04:13.6]} 18. a4
{[%clk 0:03:37.6]} 18... Rac8 {[%clk 0:04:09.8]} 19. Ba3 {[%clk 0:03:21.3]}
19... Na5 {[%clk 0:03:49.9]} 20. Bd3 {[%clk 0:03:09.1]} 20... Bxa4 {[%clk
0:03:45.2]} 21. Rc1 {[%clk 0:02:52.1]} 21... Bb3 {[%clk 0:03:38.8]} 22. Rxc8
{[%clk 0:02:45]} 22... Rxc8 {[%clk 0:03:38.7]} 23. Ne4 {[%clk 0:02:34.1]} 23...
Nc4 {[%clk 0:03:20.3]} 24. Nxf6+ {[%clk 0:02:28.9]} 24... gxf6 {[%clk
0:03:20.2]} 25. Bxc4 {[%clk 0:02:17.9]} 25... Rxc4 {[%clk 0:03:20.1]} 0-1

[Event "Live Chess"]
[Site "Chess.com"]
[Date "2023.05.20"]
[Round "-"]
[White "DRS44"]
[Black "Salpingidis"]
[Result "0-1"]
[WhiteElo "1399"]
[BlackElo "2309"]
[TimeControl "300"]
[EndTime "11:26:27 PDT"]
[Termination "Salpingidis won on time"]

1. e4 {[%clk 0:04:52.2]} 1... e6 {[%clk 0:04:59]} 2. d4 {[%clk 0:04:47.9]} 2...
d5 {[%clk 0:04:58.4]} 3. e5 {[%clk 0:04:43.8]} 3... c5 {[%clk 0:04:56.9]} 4. c3
{[%clk 0:04:36.3]} 4... Nc6 {[%clk 0:04:56.3]} 5. Nf3 {[%clk 0:04:32.3]} 5...
Qb6 {[%clk 0:04:55.7]} 6. Bd3 {[%clk 0:04:27.9]} 6... cxd4 {[%clk 0:04:54.5]} 7.
cxd4 {[%clk 0:04:24.3]} 7... Bd7 {[%clk 0:04:53.8]} 8. O-O {[%clk 0:04:13.4]}
8... Nxd4 {[%clk 0:04:52.1]} 9. Nxd4 {[%clk 0:04:09.1]} 9... Qxd4 {[%clk
0:04:52]} 10. Nc3 {[%clk 0:04:06.2]} 10... a6 {[%clk 0:04:50.7]} 11. Qe2 {[%clk
0:03:56.4]} 11... Ne7 {[%clk 0:04:48.3]} 12. Kh1 {[%clk 0:03:49]} 12... Nc6
{[%clk 0:04:47]} 13. f4 {[%clk 0:03:45.2]} 13... Bc5 {[%clk 0:04:46.1]} 14. Bd2
{[%clk 0:03:30.5]} 14... Nb4 {[%clk 0:04:39.3]} 15. Rf3 {[%clk 0:03:21.1]} 15...
Nxd3 {[%clk 0:04:04.1]} 16. Rxd3 {[%clk 0:03:13.4]} 16... Qf2 {[%clk 0:04:03]}
17. Qg4 {[%clk 0:03:01.6]} 17... g6 {[%clk 0:03:26.5]} 18. Qg5 {[%clk
0:02:09.1]} 18... Be7 {[%clk 0:03:15.1]} 19. Qh6 {[%clk 0:01:51.9]} 19... O-O-O
{[%clk 0:02:56.9]} 20. Rd1 {[%clk 0:01:40.2]} 20... Kb8 {[%clk 0:02:49.1]} 21.
Rf3 {[%clk 0:01:33.7]} 21... Qb6 {[%clk 0:02:41.9]} 22. Be3 {[%clk 0:01:15.7]}
22... Qxb2 {[%clk 0:02:31]} 23. Bd4 {[%clk 0:01:11.4]} 23... Rc8 {[%clk
0:02:20.2]} 24. Nxd5 {[%clk 0:00:55.8]} 24... Qe2 {[%clk 0:02:03.5]} 25. Rdf1
{[%clk 0:00:30.6]} 25... exd5 {[%clk 0:01:58.7]} 26. e6 {[%clk 0:00:22.6]} 26...
Bxe6 {[%clk 0:01:53.6]} 27. R3f2 {[%clk 0:00:16.8]} 27... Qd3 {[%clk 0:01:39.2]}
0-1

[Event "Live Chess"]
[Site "Chess.com"]
[Date "2023.05.20"]
[Round "-"]
[White "luckywookie"]
[Black "McSlash1"]
[Result "0-1"]
[WhiteElo "729"]
[BlackElo "2053"]
[TimeControl "300"]
[EndTime "11:26:29 PDT"]
[Termination "McSlash1 won by checkmate"]

1. e4 {[%clk 0:04:56.4]} 1... c5 {[%clk 0:04:59.3]} 2. c3 {[%clk 0:04:54.8]}
2... d5 {[%clk 0:04:58.2]} 3. exd5 {[%clk 0:04:49.1]} 3... Qxd5 {[%clk
0:04:58.1]} 4. d4 {[%clk 0:04:48]} 4... Nf6 {[%clk 0:04:47.1]} 5. Nf3 {[%clk
0:04:45.9]} 5... Bf5 {[%clk 0:04:45.3]} 6. Na3 {[%clk 0:04:27.9]} 6... Nc6
{[%clk 0:04:37.8]} 7. Be3 {[%clk 0:04:21.7]} 7... e6 {[%clk 0:04:35.1]} 8. Nb5
{[%clk 0:03:59.3]} 8... Rc8 {[%clk 0:04:28.5]} 9. c4 {[%clk 0:03:40.9]} 9... Qe4
{[%clk 0:04:23]} 10. Nd6+ {[%clk 0:03:28.8]} 10... Bxd6 {[%clk 0:04:21.6]} 11.
dxc5 {[%clk 0:03:25.2]} 11... Bxc5 {[%clk 0:04:19.9]} 12. Bd3 {[%clk 0:03:09.9]}
12... Qxd3 {[%clk 0:04:18.7]} 13. Qxd3 {[%clk 0:03:08.4]} 13... Bxd3 {[%clk
0:04:18.6]} 14. Rd1 {[%clk 0:03:05.8]} 14... Bxe3 {[%clk 0:04:15.8]} 15. fxe3
{[%clk 0:03:04.1]} 15... Bxc4 {[%clk 0:04:14.6]} 16. Nd4 {[%clk 0:02:59]} 16...
Nxd4 {[%clk 0:04:10.3]} 17. Rxd4 {[%clk 0:02:57]} 17... O-O {[%clk 0:04:09.7]}
18. b3 {[%clk 0:02:53.2]} 18... Bd5 {[%clk 0:04:07.9]} 19. O-O {[%clk
0:02:50.7]} 19... Rc2 {[%clk 0:04:06.2]} 20. a4 {[%clk 0:02:48.4]} 20... Rxg2+
{[%clk 0:04:03.8]} 21. Kh1 {[%clk 0:02:42.9]} 21... Rg4+ {[%clk 0:04:03.2]} 22.
e4 {[%clk 0:02:38.6]} 22... Nxe4 {[%clk 0:04:00.4]} 23. Rxd5 {[%clk 0:02:32.1]}
23... exd5 {[%clk 0:04:00.3]} 24. Rg1 {[%clk 0:02:28.1]} 24... Nf2# {[%clk
0:03:56.4]} 0-1

[Event "Live Chess"]
[Site "Chess.com"]
[Date "2023.05.20"]
[Round "-"]
[White "hturner40"]
[Black "ClassyChameleon"]
[Result "1-0"]
[WhiteElo "1832"]
[BlackElo "1065"]
[TimeControl "300"]
[EndTime "11:26:31 PDT"]
[Termination "hturner40 won by checkmate"]

1. Nf3 {[%clk 0:04:55.9]} 1... Nc6 {[%clk 0:04:58]} 2. d4 {[%clk 0:04:53.4]}
2... d5 {[%clk 0:04:56]} 3. c4 {[%clk 0:04:52.3]} 3... e6 {[%clk 0:04:48.5]} 4.
Nc3 {[%clk 0:04:46.7]} 4... Bb4 {[%clk 0:04:46.2]} 5. cxd5 {[%clk 0:04:37.6]}
5... exd5 {[%clk 0:04:41]} 6. Bg5 {[%clk 0:04:30.5]} 6... Bxc3+ {[%clk 0:04:34]}
7. bxc3 {[%clk 0:04:27.7]} 7... Nf6 {[%clk 0:04:28.5]} 8. e3 {[%clk 0:04:23.5]}
8... O-O {[%clk 0:04:26.6]} 9. Bd3 {[%clk 0:04:21.4]} 9... Qd6 {[%clk 0:04:22]}
10. Qc2 {[%clk 0:04:10.6]} 10... Ne4 {[%clk 0:04:19.8]} 11. Bxe4 {[%clk
0:04:07.5]} 11... dxe4 {[%clk 0:04:19.2]} 12. Qxe4 {[%clk 0:04:06.3]} 12... Qa3
{[%clk 0:04:17.5]} 13. Qc2 {[%clk 0:03:54.3]} 13... Bf5 {[%clk 0:04:05.4]} 14.
Qxf5 {[%clk 0:03:33]} 14... Qxc3+ {[%clk 0:04:03.1]} 15. Ke2 {[%clk 0:03:32.1]}
15... Nb4 {[%clk 0:03:50.9]} 16. Rhc1 {[%clk 0:02:48.5]} 16... Qb2+ {[%clk
0:03:39.3]} 17. Kd1 {[%clk 0:02:36.3]} 17... Qxf2 {[%clk 0:03:32.5]} 18. Nh4
{[%clk 0:02:06.1]} 18... Qg1+ {[%clk 0:02:48.7]} 19. Ke2 {[%clk 0:01:57.6]}
19... Qxh2 {[%clk 0:02:44.1]} 20. Qf4 {[%clk 0:01:44.9]} 20... Qxf4 {[%clk
0:02:39.8]} 21. Bxf4 {[%clk 0:01:41.8]} 21... Nd5 {[%clk 0:02:38.6]} 22. Bxc7
{[%clk 0:01:29.1]} 22... Nxc7 {[%clk 0:02:35.8]} 23. Rxc7 {[%clk 0:01:26.4]}
23... b5 {[%clk 0:02:32.9]} 24. Nf5 {[%clk 0:01:19]} 24... a5 {[%clk 0:02:24]}
25. Rf1 {[%clk 0:01:05.8]} 25... b4 {[%clk 0:02:05.6]} 26. Nd6 {[%clk
0:01:03.1]} 26... f6 {[%clk 0:02:00.8]} 27. Nf5 {[%clk 0:01:00.4]} 27... a4
{[%clk 0:01:49.8]} 28. Rxg7+ {[%clk 0:00:57.8]} 28... Kh8 {[%clk 0:01:47.9]} 29.
Rh1 {[%clk 0:00:57]} 29... h5 {[%clk 0:01:34.3]} 30. Rxh5# {[%clk 0:00:54.4]}
1-0

[Event "Live Chess"]
[Site "Chess.com"]
[Date "2023.05.20"]
[Round "-"]
[White "mliszewski"]
[Black "friarnator"]
[Result "0-1"]
[WhiteElo "1899"]
[BlackElo "2006"]
[TimeControl "300"]
[EndTime "11:26:32 PDT"]
[Termination "friarnator won by resignation"]

1. d4 {[%clk 0:04:58.5]} 1... Nf6 {[%clk 0:04:58.7]} 2. Bf4 {[%clk 0:04:55.1]}
2... e6 {[%clk 0:04:57.2]} 3. e3 {[%clk 0:04:53.5]} 3... c5 {[%clk 0:04:56.2]}
4. c3 {[%clk 0:04:51.1]} 4... Qb6 {[%clk 0:04:55.2]} 5. Qb3 {[%clk 0:04:45.3]}
5... Nc6 {[%clk 0:04:47.9]} 6. Nf3 {[%clk 0:04:41.5]} 6... d5 {[%clk 0:04:44.9]}
7. Bd3 {[%clk 0:04:38.8]} 7... c4 {[%clk 0:04:42.4]} 8. Qxb6 {[%clk 0:04:37.6]}
8... axb6 {[%clk 0:04:42.3]} 9. Bc2 {[%clk 0:04:36.9]} 9... b5 {[%clk
0:04:40.7]} 10. Nbd2 {[%clk 0:04:36.3]} 10... Nh5 {[%clk 0:04:37.1]} 11. Bc7
{[%clk 0:04:33]} 11... Kd7 {[%clk 0:04:28.7]} 12. Bb6 {[%clk 0:04:29.7]} 12...
Ra6 {[%clk 0:04:26]} 13. Bc5 {[%clk 0:04:27.6]} 13... Bxc5 {[%clk 0:04:25.1]}
14. dxc5 {[%clk 0:04:27]} 14... f5 {[%clk 0:04:17.1]} 15. Nd4 {[%clk 0:04:26.1]}
15... Nf6 {[%clk 0:04:15.6]} 16. O-O {[%clk 0:04:23.6]} 16... Na7 {[%clk
0:04:11.7]} 17. a4 {[%clk 0:04:20.8]} 17... bxa4 {[%clk 0:04:04.3]} 18. Rxa4
{[%clk 0:04:16.3]} 18... Rxa4 {[%clk 0:04:01.7]} 19. Bxa4+ {[%clk 0:04:16.2]}
19... Kc7 {[%clk 0:04:01.2]} 20. Ra1 {[%clk 0:04:14.4]} 20... e5 {[%clk
0:03:55.5]} 21. Nb5+ {[%clk 0:04:10.1]} 21... Nxb5 {[%clk 0:03:54.8]} 22. Bxb5
{[%clk 0:04:09]} 22... Bd7 {[%clk 0:03:54.5]} 23. Bxd7 {[%clk 0:04:02.1]} 23...
Kxd7 {[%clk 0:03:54.4]} 24. b4 {[%clk 0:04:00.1]} 24... cxb3 {[%clk 0:03:52]}
25. Nxb3 {[%clk 0:03:59.8]} 25... Kc6 {[%clk 0:03:49]} 26. Ra7 {[%clk
0:03:53.7]} 26... Rb8 {[%clk 0:03:44.9]} 27. h3 {[%clk 0:03:52.6]} 27... Nd7
{[%clk 0:03:40.8]} 28. Na5+ {[%clk 0:03:34.7]} 28... Kxc5 {[%clk 0:03:35.8]} 29.
Rxb7 {[%clk 0:03:31.3]} 29... Rxb7 {[%clk 0:03:32.6]} 30. Nxb7+ {[%clk 0:03:31]}
30... Kc4 {[%clk 0:03:30.9]} 31. Nd6+ {[%clk 0:03:29.5]} 31... Kxc3 {[%clk
0:03:30]} 32. Nxf5 {[%clk 0:03:29.1]} 32... g6 {[%clk 0:03:24.4]} 33. Ne7 {[%clk
0:03:27.3]} 33... d4 {[%clk 0:03:23.4]} 34. exd4 {[%clk 0:03:25.9]} 34... exd4
{[%clk 0:03:23.3]} 35. Nd5+ {[%clk 0:03:24.2]} 35... Kc2 {[%clk 0:03:20]} 36.
Nb4+ {[%clk 0:03:22.4]} 36... Kb3 {[%clk 0:03:17.7]} 37. Nd3 {[%clk 0:03:21.3]}
37... Kc3 {[%clk 0:03:17]} 38. Nf4 {[%clk 0:03:16]} 38... d3 {[%clk 0:03:15.7]}
39. Kf1 {[%clk 0:03:15.8]} 39... Kd2 {[%clk 0:03:14]} 40. Nd5 {[%clk 0:03:12.7]}
40... Nc5 {[%clk 0:03:09.3]} 41. Ne3 {[%clk 0:03:11.3]} 41... Kc1 {[%clk
0:03:05.6]} 42. Ke1 {[%clk 0:03:07.9]} 42... d2+ {[%clk 0:03:05]} 43. Ke2 {[%clk
0:03:07.3]} 43... Ne4 {[%clk 0:03:02.5]} 44. f3 {[%clk 0:03:05.4]} 44... Nc3+
{[%clk 0:03:01.1]} 45. Kd3 {[%clk 0:03:02.8]} 45... Nd1 {[%clk 0:02:41.7]} 46.
Nf1 {[%clk 0:02:58.7]} 46... Nf2+ {[%clk 0:02:39.9]} 47. Ke2 {[%clk 0:02:55.5]}
47... d1=Q+ {[%clk 0:02:39.2]} 48. Kxf2 {[%clk 0:02:55]} 48... Qd4+ {[%clk
0:02:35.7]} 0-1

[Event "Live Chess"]
[Site "Chess.com"]
[Date "2023.05.20"]
[Round "-"]
[White "MaximKris"]
[Black "TheSmoulderingMaster"]
[Result "1-0"]
[WhiteElo "1881"]
[BlackElo "1763"]
[TimeControl "300"]
[EndTime "11:26:48 PDT"]
[Termination "MaximKris won by checkmate"]

1. e4 {[%clk 0:04:58.1]} 1... c5 {[%clk 0:04:58.8]} 2. Nf3 {[%clk 0:04:57.3]}
2... d6 {[%clk 0:04:57]} 3. c3 {[%clk 0:04:56.2]} 3... Nf6 {[%clk 0:04:55.7]} 4.
Bd3 {[%clk 0:04:53.6]} 4... Nc6 {[%clk 0:04:54.4]} 5. O-O {[%clk 0:04:52.9]}
5... Bg4 {[%clk 0:04:53]} 6. Re1 {[%clk 0:04:51.9]} 6... e5 {[%clk 0:04:50.7]}
7. h3 {[%clk 0:04:50.8]} 7... Bh5 {[%clk 0:04:49.5]} 8. Bc2 {[%clk 0:04:49.7]}
8... Be7 {[%clk 0:04:48.4]} 9. d3 {[%clk 0:04:42.1]} 9... O-O {[%clk 0:04:47.3]}
10. Bg5 {[%clk 0:04:41]} 10... d5 {[%clk 0:04:43.8]} 11. exd5 {[%clk 0:04:33.2]}
11... Nxd5 {[%clk 0:04:42.6]} 12. Bxe7 {[%clk 0:04:33.1]} 12... Qxe7 {[%clk
0:04:41]} 13. d4 {[%clk 0:04:28.2]} 13... cxd4 {[%clk 0:04:39.4]} 14. cxd4
{[%clk 0:04:27.4]} 14... Rad8 {[%clk 0:04:32.9]} 15. Qd3 {[%clk 0:04:10.8]}
15... Nf4 {[%clk 0:04:30.1]} 16. Qxh7# {[%clk 0:04:08.6]} 1-0